fUST/lending_fUST_20260514
["ID","MTS","AMOUNT","RATE_DAILY","PERIOD"]
[422220680,1778724658000,-190.65003462,0.00011506,2]
[422220681,1778724658000,-500.0,0.00011506,2]
[422220678,1778724658000,-500.0,0.00011506,2]
[422220679,1778724658000,-500.0,0.00011506,2]
[422220687,1778724658000,-500.0,0.00011506,2]
[422220688,1778724658000,-500.0,0.00011506,2]
[422220693,1778724658000,-500.0,0.00011506,2]
[422220689,1778724658000,-500.0,0.00011506,2]
[422220710,1778724658000,-500.0,0.00011506,2]
[422220708,1778724658000,-500.0,0.00011506,2]
[422220713,1778724658000,-500.0,0.00011506,2]
[422220731,1778724658000,-500.0,0.00011506,2]
[422220733,1778724658000,-500.0,0.00011506,2]
[422220729,1778724658000,-3494.15,0.00011506,2]
[422220732,1778724658000,-1820.62,0.00011506,2]
[422220734,1778724658000,-500.0,0.00011506,2]
[422220738,1778724658000,-601.58591426,0.00011506,2]
[422220740,1778724658000,-62.81932294,0.00011506,2]
[422220741,1778724658000,-272.85067708,0.00011506,2]
[422220742,1778724658000,-227.14932292,0.00011506,2]
[422220743,1778724658000,-401.63824166,0.00011506,2]
[422220739,1778724658000,-437.18067706,0.00011506,2]
[422220745,1778724658000,-455.36155166,0.00011506,2]
[422220744,1778724658000,-841.85175834,0.00011506,2]
[422220746,1778724658000,-958.5,0.00010849,2]
[422220711,1778724658000,-500.0,0.00011506,2]
[422220728,1778724658000,-826.08,0.00011506,2]
[422220727,1778724658000,-500.0,0.00011506,2]
[422220735,1778724658000,-500.0,0.00011506,2]
[422220725,1778724658000,-500.0,0.00011506,2]
[422220717,1778724658000,-500.0,0.00011506,2]
[422220730,1778724658000,-500.0,0.00011506,2]
[422220715,1778724658000,-500.0,0.00011506,2]
[422220723,1778724658000,-500.0,0.00011506,2]
[422220722,1778724658000,-500.0,0.00011506,2]
[422220716,1778724658000,-500.0,0.00011506,2]
[422220719,1778724658000,-500.0,0.00011506,2]
[422220718,1778724658000,-586.69,0.00011506,2]
[422220714,1778724658000,-550.66719446,0.00011506,2]
[422220720,1778724658000,-500.0,0.00011506,2]
[422220712,1778724658000,-561.90747109,0.00011506,2]
[422220724,1778724658000,-500.0,0.00011506,2]
[422220726,1778724658000,-500.0,0.00011506,2]
[422220736,1778724658000,-500.0,0.00011506,2]
[422220721,1778724658000,-500.0,0.00011506,2]
[422220737,1778724658000,-500.70878827,0.00011506,2]
[422220758,1778724659000,-500.0,0.00011506,2]
[422220760,1778724659000,-501.11900547,0.00011506,2]
[422220753,1778724659000,-1642.8,0.00011506,2]
[422220752,1778724659000,-500.0,0.00011506,2]
[422220754,1778724659000,-500.0,0.00011506,2]
[422220755,1778724659000,-500.0,0.00011506,2]
[422220747,1778724659000,-4041.5,0.00010849,2]
[422220750,1778724659000,-905.07,0.00011506,2]
[422220749,1778724659000,-44.63844834,0.00011506,2]
[422220757,1778724659000,-500.0,0.00011506,2]
[422220756,1778724659000,-500.0,0.00011506,2]
[422220748,1778724659000,-313.81210785,0.00010958,2]
[422220761,1778724659000,-500.0,0.00011506,2]
[422220751,1778724659000,-699.74,0.00011506,2]
[422220765,1778724659000,-500.0,0.00011506,2]
[422220773,1778724659000,-500.0,0.00011506,2]
[422220759,1778724659000,-1000.0,0.00011506,2]
[422220767,1778724659000,-512.86,0.00011506,2]
[422220762,1778724659000,-500.0,0.00011506,2]
[422220763,1778724659000,-500.0,0.00011506,2]
[422220764,1778724659000,-762.39,0.00011506,2]
[422220768,1778724659000,-1145.42,0.00011506,2]
[422220771,1778724659000,-1661.19,0.00011506,2]
[422220770,1778724659000,-1059.78,0.00011506,2]
[422220766,1778724659000,-500.0,0.00011506,2]
[422220776,1778724659000,-500.0,0.00011506,2]
[422220772,1778724659000,-500.0,0.00011506,2]
[422220774,1778724659000,-500.0,0.00011506,2]
[422220777,1778724659000,-500.0,0.00011506,2]
[422220775,1778724659000,-500.0,0.00011506,2]
[422220778,1778724659000,-758.0103198,0.00011506,2]
[422220769,1778724659000,-478.83389621,0.00011506,2]
[422220779,1778724770000,222.0,0.00012,120]
[422220780,1778724794000,155.0,0.00012,120]
[422220781,1778724807000,333.0,0.00012,120]
[422220782,1778724818000,1220.5,5e-05,2]
[422220783,1778724819000,444.0,0.00012,120]
[422220784,1778724839000,555.0,0.00012,120]
[422220785,1778724860000,444.0,0.00012,120]
[422221024,1778725622000,151.0,0.00012,120]
[422221068,1778725832000,-1980.1863641,7.259e-05,2]
[422221069,1778725832000,-373.88435843,7.259e-05,2]
[422221067,1778725832000,-302.87205222,7.259e-05,2]
[422221062,1778725832000,-1009.63662955,7.259e-05,2]
[422221077,1778725838000,-390.5989589,7.186e-05,2]
[422221079,1778725838000,-365.54424065,7.519e-05,2]
[422221078,1778725838000,-1333.4205957,7.259e-05,2]
[422221083,1778725838000,-2417.52020388,7.9e-05,2]
[422221086,1778725838000,-2675.26406495,7.9e-05,2]
[422221084,1778725838000,-2213.97735396,7.9e-05,2]
[422221082,1778725838000,-981.06003245,7.9e-05,2]
[422221085,1778725838000,-2444.62070942,7.9e-05,2]
[422221081,1778725838000,-300.0,7.899e-05,2]
[422221080,1778725838000,-150.23170057,7.633e-05,2]
[422221088,1778725839000,-534.2300658,7.998e-05,2]
[422221089,1778725839000,-1389431.68723863,7.999e-05,2]
[422221087,1778725839000,-298.135,7.937e-05,2]
[422221090,1778725839000,-17765.65063123,8.099e-05,2]
[422221121,1778725841000,-1691.07219734,8.099e-05,2]
[422221120,1778725841000,-1134.52547948,8.099e-05,2]
[422221136,1778725844000,-14888.422095,8.099e-05,2]
[422221148,1778725847000,-3641.0530153,8.099e-05,2]
[422221147,1778725847000,-4520.0866132,8.099e-05,2]
[422221149,1778725849000,5000.0,8e-05,2]
[422221195,1778727031000,-669.85014291,6.855e-05,2]
[422221198,1778727031000,-365.22219267,7.029e-05,2]
[422221199,1778727031000,-150.23170057,7.065e-05,2]
[422221196,1778727031000,-4330.14985709,6.855e-05,2]
[422221197,1778727031000,-743.35003978,6.924e-05,2]
[422221202,1778727031000,-300.0,7.698e-05,2]
[422221201,1778727031000,-534.2300658,7.698e-05,2]
[422221203,1778727031000,-531.0,7.698e-05,2]
[422221204,1778727031000,-3813.19373141,7.699e-05,2]
[422221200,1778727031000,-298.135,7.643e-05,2]
[422221261,1778727038000,-154.853,9.829e-05,2]
[422221260,1778727038000,-648.493,9.829e-05,2]
[422221255,1778727038000,-500.0,9.555e-05,2]
[422221253,1778727038000,-430.96218736,9.029e-05,2]
[422221257,1778727038000,-646.25632794,9.555e-05,2]
[422221259,1778727038000,-2202.0,9.829e-05,2]
[422221251,1778727038000,-600.0,8.362e-05,2]
[422221249,1778727038000,-300.0,8.362e-05,2]
[422221258,1778727038000,-1412.0,9.829e-05,2]
[422221263,1778727038000,-169.07947682,9.844e-05,2]
[422221254,1778727038000,-720.0,9.198e-05,2]
[422221264,1778727038000,-226.49738517,9.844e-05,2]
[422221269,1778727038000,-160.0,0.00010144,2]
[422221265,1778727038000,-156.81697334,9.844e-05,2]
[422221266,1778727038000,-160.19629477,9.844e-05,2]
[422221268,1778727038000,-160.0,0.00010144,2]
[422221272,1778727038000,-512.07827199,0.00010144,2]
[422221270,1778727038000,-161.64793294,0.00010144,2]
[422221267,1778727038000,-864.0,0.00010118,2]
[422221271,1778727038000,-160.0,0.00010144,2]
[422221252,1778727038000,-300.0,8.468e-05,2]
[422221273,1778727038000,-284.62501127,0.00010251,21]
[422221274,1778727038000,-286.82298771,0.00010257,21]
[422221275,1778727038000,-2905.98528858,0.00010654,2]
[422221282,1778727038000,-376.4561596,0.00010795,2]
[422221262,1778727038000,-157.53574515,9.844e-05,2]
[422221250,1778727038000,-300.0,8.362e-05,2]
[422221241,1778727038000,-300.0,8.362e-05,2]
[422221248,1778727038000,-300.0,8.362e-05,2]
[422221222,1778727038000,-136251.45649815,7.699e-05,2]
[422221232,1778727038000,-500.0,8.219e-05,2]
[422221221,1778727038000,-4700.40989256,6.786e-05,2]
[422221224,1778727038000,-3402.91417089,7.798e-05,2]
[422221225,1778727038000,-61805.81538616,7.799e-05,2]
[422221223,1778727038000,-200.0,7.709e-05,2]
[422221227,1778727038000,-155.0,8.099e-05,2]
[422221228,1778727038000,-201.07887844,8.219e-05,2]
[422221226,1778727038000,-4656.9309893,7.799e-05,2]
[422221230,1778727038000,-500.0,8.219e-05,2]
[422221229,1778727038000,-500.0,8.219e-05,2]
[422221231,1778727038000,-500.0,8.219e-05,2]
[422221247,1778727038000,-300.0,8.362e-05,2]
[422221233,1778727038000,-500.0,8.219e-05,2]
[422221245,1778727038000,-300.0,8.362e-05,2]
[422221234,1778727038000,-501.16116911,8.219e-05,2]
[422221236,1778727038000,-300.0,8.362e-05,2]
[422221242,1778727038000,-300.0,8.362e-05,2]
[422221239,1778727038000,-300.0,8.362e-05,2]
[422221276,1778727038000,-555.0,0.0001073,2]
[422221238,1778727038000,-300.0,8.362e-05,2]
[422221237,1778727038000,-300.0,8.362e-05,2]
[422221243,1778727038000,-300.0,8.362e-05,2]
[422221244,1778727038000,-300.0,8.362e-05,2]
[422221240,1778727038000,-300.0,8.362e-05,2]
[422221246,1778727038000,-300.0,8.362e-05,2]
[422221235,1778727038000,-207.63837452,8.219e-05,2]
[422221283,1778727038000,-8030.14662826,0.00010858,2]
[422221256,1778727038000,-500.0,9.555e-05,2]
[422221285,1778727038000,-168.235128,0.00010958,2]
[422221306,1778727038000,-1089.694377,0.00010958,2]
[422221310,1778727038000,-1089.694377,0.00010958,2]
[422221314,1778727038000,-1089.694377,0.00010958,2]
[422221313,1778727038000,-1047.783054,0.00010958,2]
[422221315,1778727038000,-1047.783054,0.00010958,2]
[422221319,1778727038000,-1047.783054,0.00010958,2]
[422221316,1778727038000,-1089.694377,0.00010958,2]
[422221317,1778727038000,-1047.783054,0.00010958,2]
[422221321,1778727038000,-1047.783054,0.00010958,2]
[422221318,1778727038000,-1089.694377,0.00010958,2]
[422221320,1778727038000,-1089.694377,0.00010958,2]
[422221322,1778727038000,-1089.694377,0.00010958,2]
[422221307,1778727038000,-1089.694377,0.00010958,2]
[422221334,1778727038000,-1089.694377,0.00010958,2]
[422221325,1778727038000,-1047.783054,0.00010958,2]
[422221326,1778727038000,-1089.694377,0.00010958,2]
[422221333,1778727038000,-1047.783054,0.00010958,2]
[422221332,1778727038000,-1089.694377,0.00010958,2]
[422221327,1778727038000,-1047.783054,0.00010958,2]
[422221328,1778727038000,-1089.694377,0.00010958,2]
[422221330,1778727038000,-1089.694377,0.00010958,2]
[422221329,1778727038000,-1047.783054,0.00010958,2]
[422221331,1778727038000,-1047.783054,0.00010958,2]
[422221336,1778727038000,-1089.694377,0.00010958,2]
[422221335,1778727038000,-1047.783054,0.00010958,2]
[422221284,1778727038000,-324.0548063,0.0001086,21]
[422221323,1778727038000,-1047.783054,0.00010958,2]
[422221309,1778727038000,-1089.694377,0.00010958,2]
[422221324,1778727038000,-1089.694377,0.00010958,2]
[422221304,1778727038000,-1047.783054,0.00010958,2]
[422221281,1778727038000,-777.0,0.00010783,2]
[422221303,1778727038000,-1089.694377,0.00010958,2]
[422221286,1778727038000,-172.615771,0.00010958,2]
[422221279,1778727038000,-555.0,0.00010783,2]
[422221280,1778727038000,-999.0,0.00010783,2]
[422221277,1778727038000,-444.0,0.0001073,2]
[422221278,1778727038000,-324.0548063,0.0001073,21]
[422221288,1778727038000,-172.615771,0.00010958,2]
[422221298,1778727038000,-1047.783054,0.00010958,2]
[422221292,1778727038000,-1047.783054,0.00010958,2]
[422221287,1778727038000,-172.615771,0.00010958,2]
[422221290,1778727038000,-172.615771,0.00010958,2]
[422221295,1778727038000,-1089.694377,0.00010958,2]
[422221291,1778727038000,-172.615771,0.00010958,2]
[422221289,1778727038000,-172.615771,0.00010958,2]
[422221297,1778727038000,-1089.694377,0.00010958,2]
[422221296,1778727038000,-1089.694377,0.00010958,2]
[422221294,1778727038000,-1047.783054,0.00010958,2]
[422221293,1778727038000,-1047.783054,0.00010958,2]
[422221299,1778727038000,-1089.694377,0.00010958,2]
[422221300,1778727038000,-1047.783054,0.00010958,2]
[422221302,1778727038000,-1047.783054,0.00010958,2]
[422221301,1778727038000,-1089.694377,0.00010958,2]
[422221312,1778727038000,-1089.694377,0.00010958,2]
[422221305,1778727038000,-1089.694377,0.00010958,2]
[422221308,1778727038000,-1089.694377,0.00010958,2]
[422221311,1778727038000,-1047.783054,0.00010958,2]
[422221376,1778727039000,-1089.694377,0.00010958,2]
[422221380,1778727039000,-1047.783054,0.00010958,2]
[422221375,1778727039000,-1089.694377,0.00010958,2]
[422221378,1778727039000,-1089.694377,0.00010958,2]
[422221377,1778727039000,-1089.694377,0.00010958,2]
[422221385,1778727039000,-1089.694377,0.00010958,2]
[422221370,1778727039000,-1047.783054,0.00010958,2]
[422221384,1778727039000,-1047.783054,0.00010958,2]
[422221374,1778727039000,-1047.783054,0.00010958,2]
[422221366,1778727039000,-1047.783054,0.00010958,2]
[422221371,1778727039000,-1089.694377,0.00010958,2]
[422221379,1778727039000,-1047.783054,0.00010958,2]
[422221373,1778727039000,-1089.694377,0.00010958,2]
[422221382,1778727039000,-1047.783054,0.00010958,2]
[422221392,1778727039000,-178.61595,0.00010958,2]
[422221383,1778727039000,-1047.783054,0.00010958,2]
[422221386,1778727039000,-1047.783054,0.00010958,2]
[422221388,1778727039000,-1047.783054,0.00010958,2]
[422221389,1778727039000,-1089.694377,0.00010958,2]
[422221390,1778727039000,-2460.6152,0.00010958,2]
[422221387,1778727039000,-1089.694377,0.00010958,2]
[422221397,1778727039000,-500.0,0.00010958,2]
[422221393,1778727039000,-500.0,0.00010958,2]
[422221394,1778727039000,-500.48928063,0.00010958,2]
[422221391,1778727039000,-167.197632,0.00010958,2]
[422221398,1778727039000,-500.0,0.00010958,2]
[422221395,1778727039000,-500.0,0.00010958,2]
[422221369,1778727039000,-1047.783054,0.00010958,2]
[422221396,1778727039000,-500.0,0.00010958,2]
[422221381,1778727039000,-1047.783054,0.00010958,2]
[422221367,1778727039000,-1047.783054,0.00010958,2]
[422221338,1778727039000,-1089.694377,0.00010958,2]
[422221364,1778727039000,-1089.694377,0.00010958,2]
[422221400,1778727039000,-500.0,0.00010958,2]
[422221346,1778727039000,-1089.694377,0.00010958,2]
[422221337,1778727039000,-1047.783054,0.00010958,2]
[422221347,1778727039000,-1047.783054,0.00010958,2]
[422221340,1778727039000,-1089.694377,0.00010958,2]
[422221345,1778727039000,-1047.783054,0.00010958,2]
[422221343,1778727039000,-1047.783054,0.00010958,2]
[422221344,1778727039000,-1089.694377,0.00010958,2]
[422221339,1778727039000,-1047.783054,0.00010958,2]
[422221342,1778727039000,-1089.694377,0.00010958,2]
[422221341,1778727039000,-1047.783054,0.00010958,2]
[422221348,1778727039000,-1089.694377,0.00010958,2]
[422221349,1778727039000,-1047.783054,0.00010958,2]
[422221359,1778727039000,-1047.783054,0.00010958,2]
[422221360,1778727039000,-1089.694377,0.00010958,2]
[422221350,1778727039000,-1089.694377,0.00010958,2]
[422221352,1778727039000,-1089.694377,0.00010958,2]
[422221356,1778727039000,-1089.694377,0.00010958,2]
[422221358,1778727039000,-1089.694377,0.00010958,2]
[422221351,1778727039000,-1047.783054,0.00010958,2]
[422221353,1778727039000,-1047.783054,0.00010958,2]
[422221355,1778727039000,-1047.783054,0.00010958,2]
[422221354,1778727039000,-1089.694377,0.00010958,2]
[422221357,1778727039000,-1047.783054,0.00010958,2]
[422221361,1778727039000,-1047.783054,0.00010958,2]
[422221362,1778727039000,-1089.694377,0.00010958,2]
[422221365,1778727039000,-1047.783054,0.00010958,2]
[422221363,1778727039000,-1047.783054,0.00010958,2]
[422221372,1778727039000,-1047.783054,0.00010958,2]
[422221368,1778727039000,-1047.783054,0.00010958,2]
[422221409,1778727039000,-500.0,0.00010958,2]
[422221434,1778727039000,-500.0,0.00010958,2]
[422221408,1778727039000,-500.0,0.00010958,2]
[422221431,1778727039000,-500.0,0.00010958,2]
[422221435,1778727039000,-1000.0,0.00010958,2]
[422221437,1778727039000,-500.0,0.00010958,2]
[422221443,1778727039000,-500.0,0.00010958,2]
[422221444,1778727039000,-500.0,0.00010958,2]
[422221445,1778727039000,-500.0,0.00010958,2]
[422221446,1778727039000,-500.0,0.00010958,2]
[422221455,1778727039000,-500.0,0.00010958,2]
[422221453,1778727039000,-340.95540975,0.00010958,2]
[422221447,1778727039000,-500.0,0.00010958,2]
[422221454,1778727039000,-500.0,0.00010958,2]
[422221450,1778727039000,-500.0,0.00010958,2]
[422221451,1778727039000,-500.0,0.00010958,2]
[422221449,1778727039000,-500.0,0.00010958,2]
[422221452,1778727039000,-500.0,0.00010958,2]
[422221448,1778727039000,-500.0,0.00010958,2]
[422221457,1778727039000,-500.0,0.00010958,2]
[422221463,1778727039000,-500.0,0.00010958,2]
[422221467,1778727039000,-500.0,0.00010958,2]
[422221461,1778727039000,-500.0,0.00010958,2]
[422221456,1778727039000,-698.86,0.00010958,2]
[422221468,1778727039000,-500.0,0.00010958,2]
[422221459,1778727039000,-500.0,0.00010958,2]
[422221458,1778727039000,-500.0,0.00010958,2]
[422221460,1778727039000,-500.0,0.00010958,2]
[422221462,1778727039000,-500.0,0.00010958,2]
[422221464,1778727039000,-500.0,0.00010958,2]
[422221410,1778727039000,-862.18,0.00010958,2]
[422221465,1778727039000,-500.0,0.00010958,2]
[422221433,1778727039000,-500.0,0.00010958,2]
[422221430,1778727039000,-500.0,0.00010958,2]
[422221466,1778727039000,-500.0,0.00010958,2]
[422221442,1778727039000,-418.48649857,0.00010958,2]
[422221432,1778727039000,-500.0,0.00010958,2]
[422221411,1778727039000,-500.0,0.00010958,2]
[422221401,1778727039000,-500.0,0.00010958,2]
[422221403,1778727039000,-500.0,0.00010958,2]
[422221405,1778727039000,-500.0,0.00010958,2]
[422221407,1778727039000,-500.0,0.00010958,2]
[422221406,1778727039000,-500.0,0.00010958,2]
[422221402,1778727039000,-500.0,0.00010958,2]
[422221404,1778727039000,-500.0,0.00010958,2]
[422221413,1778727039000,-500.0,0.00010958,2]
[422221414,1778727039000,-500.0,0.00010958,2]
[422221416,1778727039000,-500.0,0.00010958,2]
[422221415,1778727039000,-500.0,0.00010958,2]
[422221412,1778727039000,-500.0,0.00010958,2]
[422221424,1778727039000,-500.0,0.00010958,2]
[422221399,1778727039000,-500.0,0.00010958,2]
[422221422,1778727039000,-500.0,0.00010958,2]
[422221427,1778727039000,-500.0,0.00010958,2]
[422221441,1778727039000,-500.0,0.00010958,2]
[422221429,1778727039000,-500.0,0.00010958,2]
[422221426,1778727039000,-500.0,0.00010958,2]
[422221440,1778727039000,-500.0,0.00010958,2]
[422221428,1778727039000,-500.0,0.00010958,2]
[422221439,1778727039000,-621.44028599,0.00010958,2]
[422221425,1778727039000,-500.0,0.00010958,2]
[422221421,1778727039000,-500.0,0.00010958,2]
[422221417,1778727039000,-500.0,0.00010958,2]
[422221418,1778727039000,-500.0,0.00010958,2]
[422221420,1778727039000,-500.0,0.00010958,2]
[422221419,1778727039000,-500.0,0.00010958,2]
[422221516,1778727040000,-500.0,0.00010958,2]
[422221521,1778727040000,-500.0,0.00010958,2]
[422221510,1778727040000,-551.86798785,0.00010958,2]
[422221520,1778727040000,-500.0,0.00010958,2]
[422221501,1778727040000,-500.0,0.00010958,2]
[422221505,1778727040000,-500.0,0.00010958,2]
[422221499,1778727040000,-500.0,0.00010958,2]
[422221500,1778727040000,-500.0,0.00010958,2]
[422221503,1778727040000,-500.0,0.00010958,2]
[422221498,1778727040000,-500.0,0.00010958,2]
[422221502,1778727040000,-500.0,0.00010958,2]
[422221528,1778727040000,-500.0,0.00010958,2]
[422221504,1778727040000,-1173.71,0.00010958,2]
[422221509,1778727040000,-500.0,0.00010958,2]
[422221512,1778727040000,-500.0,0.00010958,2]
[422221511,1778727040000,-500.0,0.00010958,2]
[422221513,1778727040000,-500.0,0.00010958,2]
[422221515,1778727040000,-500.0,0.00010958,2]
[422221517,1778727040000,-702.73,0.00010958,2]
[422221519,1778727040000,-500.0,0.00010958,2]
[422221518,1778727040000,-500.0,0.00010958,2]
[422221522,1778727040000,-500.0,0.00010958,2]
[422221524,1778727040000,-500.0,0.00010958,2]
[422221523,1778727040000,-500.0,0.00010958,2]
[422221525,1778727040000,-500.0,0.00010958,2]
[422221527,1778727040000,-500.0,0.00010958,2]
[422221526,1778727040000,-500.0,0.00010958,2]
[422221495,1778727040000,-500.0,0.00010958,2]
[422221514,1778727040000,-500.0,0.00010958,2]
[422221497,1778727040000,-500.0,0.00010958,2]
[422221492,1778727040000,-500.0,0.00010958,2]
[422221507,1778727040000,-500.0,0.00010958,2]
[422221532,1778727040000,-1926.66,0.00010958,2]
[422221469,1778727040000,-500.0,0.00010958,2]
[422221470,1778727040000,-500.0,0.00010958,2]
[422221471,1778727040000,-632.29353232,0.00010958,2]
[422221481,1778727040000,-500.0,0.00010958,2]
[422221480,1778727040000,-337.01715005,0.00010958,2]
[422221477,1778727040000,-571.11064846,0.00010958,2]
[422221473,1778727040000,-500.0,0.00010958,2]
[422221479,1778727040000,-500.0,0.00010958,2]
[422221472,1778727040000,-500.0,0.00010958,2]
[422221474,1778727040000,-500.0,0.00010958,2]
[422221475,1778727040000,-500.0,0.00010958,2]
[422221476,1778727040000,-500.0,0.00010958,2]
[422221508,1778727040000,-500.0,0.00010958,2]
[422221478,1778727040000,-500.0,0.00010958,2]
[422221491,1778727040000,-500.0,0.00010958,2]
[422221494,1778727040000,-500.0,0.00010958,2]
[422221493,1778727040000,-500.0,0.00010958,2]
[422221482,1778727040000,-500.0,0.00010958,2]
[422221490,1778727040000,-500.0,0.00010958,2]
[422221486,1778727040000,-500.0,0.00010958,2]
[422221484,1778727040000,-638.92,0.00010958,2]
[422221488,1778727040000,-500.0,0.00010958,2]
[422221489,1778727040000,-500.0,0.00010958,2]
[422221487,1778727040000,-500.0,0.00010958,2]
[422221485,1778727040000,-500.0,0.00010958,2]
[422221496,1778727040000,-500.0,0.00010958,2]
[422221506,1778727040000,-500.0,0.00010958,2]
[422221483,1778727040000,-772.07,0.00010958,2]
[422221529,1778727040000,-500.0,0.00010958,2]
[422221568,1778727040000,-500.0,0.00010958,2]
[422221531,1778727040000,-500.0,0.00010958,2]
[422221565,1778727040000,-500.0,0.00010958,2]
[422221563,1778727040000,-500.0,0.00010958,2]
[422221587,1778727040000,-500.0,0.00010958,2]
[422221570,1778727040000,-500.0,0.00010958,2]
[422221571,1778727040000,-500.0,0.00010958,2]
[422221564,1778727040000,-500.0,0.00010958,2]
[422221566,1778727040000,-500.0,0.00010958,2]
[422221573,1778727040000,-500.0,0.00010958,2]
[422221572,1778727040000,-500.0,0.00010958,2]
[422221574,1778727040000,-500.0,0.00010958,2]
[422221575,1778727040000,-500.0,0.00010958,2]
[422221580,1778727040000,-608.59,0.00010958,2]
[422221577,1778727040000,-500.0,0.00010958,2]
[422221567,1778727040000,-999.5,0.00010958,2]
[422221576,1778727040000,-478.44894249,0.00010958,2]
[422221581,1778727040000,-500.0,0.00010958,2]
[422221584,1778727040000,-500.0,0.00010958,2]
[422221588,1778727040000,-500.0,0.00010958,2]
[422221582,1778727040000,-500.0,0.00010958,2]
[422221585,1778727040000,-500.0,0.00010958,2]
[422221583,1778727040000,-500.0,0.00010958,2]
[422221590,1778727040000,-500.0,0.00010958,2]
[422221589,1778727040000,-500.0,0.00010958,2]
[422221593,1778727040000,-565.45510831,0.00010958,2]
[422221591,1778727040000,-510.8,0.00010958,2]
[422221586,1778727040000,-500.0,0.00010958,2]
[422221592,1778727040000,-500.0,0.00010958,2]
[422221534,1778727040000,-500.0,0.00010958,2]
[422221579,1778727040000,-1599.19,0.00010958,2]
[422221569,1778727040000,-500.0,0.00010958,2]
[422221578,1778727040000,-512.82,0.00010958,2]
[422221561,1778727040000,-500.0,0.00010958,2]
[422221562,1778727040000,-500.0,0.00010958,2]
[422221533,1778727040000,-500.0,0.00010958,2]
[422221535,1778727040000,-500.0,0.00010958,2]
[422221536,1778727040000,-500.0,0.00010958,2]
[422221547,1778727040000,-500.0,0.00010958,2]
[422221546,1778727040000,-419.2583996,0.00010958,2]
[422221537,1778727040000,-500.0,0.00010958,2]
[422221545,1778727040000,-500.0,0.00010958,2]
[422221544,1778727040000,-500.0,0.00010958,2]
[422221538,1778727040000,-500.0,0.00010958,2]
[422221540,1778727040000,-500.0,0.00010958,2]
[422221541,1778727040000,-500.0,0.00010958,2]
[422221539,1778727040000,-500.0,0.00010958,2]
[422221543,1778727040000,-477.45683548,0.00010958,2]
[422221530,1778727040000,-647.74266129,0.00010958,2]
[422221548,1778727040000,-500.0,0.00010958,2]
[422221542,1778727040000,-500.0,0.00010958,2]
[422221554,1778727040000,-500.0,0.00010958,2]
[422221559,1778727040000,-500.0,0.00010958,2]
[422221556,1778727040000,-679.48,0.00010958,2]
[422221555,1778727040000,-500.0,0.00010958,2]
[422221560,1778727040000,-500.0,0.00010958,2]
[422221557,1778727040000,-500.0,0.00010958,2]
[422221552,1778727040000,-500.0,0.00010958,2]
[422221553,1778727040000,-500.0,0.00010958,2]
[422221551,1778727040000,-537.61449039,0.00010958,2]
[422221550,1778727040000,-660.05,0.00010958,2]
[422221549,1778727040000,-500.0,0.00010958,2]
[422221558,1778727040000,-500.0,0.00010958,2]
[422221649,1778727041000,-500.0,0.00010958,2]
[422221648,1778727041000,-500.0,0.00010958,2]
[422221651,1778727041000,-500.0,0.00010958,2]
[422221638,1778727041000,-500.0,0.00010958,2]
[422221622,1778727041000,-700.247196,0.00010958,2]
[422221630,1778727041000,-500.0,0.00010958,2]
[422221626,1778727041000,-500.0,0.00010958,2]
[422221631,1778727041000,-500.0,0.00010958,2]
[422221633,1778727041000,-500.0,0.00010958,2]
[422221624,1778727041000,-500.0,0.00010958,2]